lending/lending_fUSD_20250406
["ID","MTS","AMOUNT","RATE_DAILY","PERIOD"]
[357270228,1743970943635,-509.93071618,0.00052054,120]
[357270229,1743970943661,-403.88759927,0.00052054,120]
[357270230,1743970943687,-500.0,0.00052054,120]
[357270231,1743970943713,-500.0,0.00052054,120]
[357270232,1743970943739,-500.0,0.00052054,120]
[357270233,1743970943764,-500.0,0.00052054,120]
[357270234,1743970943790,-500.0,0.00052054,120]
[357270235,1743970943817,-500.0,0.00052054,120]
[357270236,1743970943843,-500.0,0.00052054,120]
[357270237,1743970943868,-540.33801838,0.00052054,120]
[357270238,1743970943894,-500.0,0.00052054,120]
[357270239,1743970943920,-500.0,0.00052054,120]
[357270240,1743970943947,-500.0,0.00052054,120]
[357270241,1743970943974,-500.0,0.00052054,120]
[357270242,1743970944000,-500.0,0.00052054,30]
[357270243,1743970944027,-500.0,0.00052054,120]
[357270244,1743970944053,-500.0,0.00052054,120]
[357270245,1743970944084,-500.0,0.00052054,120]
[357270246,1743970944112,-500.0,0.00052054,120]
[357270247,1743970944138,-500.0,0.00052054,120]
[357270248,1743970944164,-500.0,0.00052054,120]
[357270249,1743970944189,-503.91392196,0.00052054,120]
[357270250,1743970944214,-530.43261838,0.00052054,120]
[357270251,1743970944241,-500.0,0.00052054,120]
[357270252,1743970944266,-500.0,0.00052054,120]
[357270253,1743970944294,-359.04114036,0.00052054,120]
[357270254,1743970944336,-513.48673651,0.00052054,120]
[357270255,1743970944366,-537.04202086,0.00052054,120]
[357270256,1743970944394,-500.0,0.00052054,120]
[357270257,1743970944424,-500.0,0.00052054,120]
[357270258,1743970944449,-500.0,0.00052054,120]
[357270259,1743970944475,-500.0,0.00052054,120]
[357270260,1743970944500,-599.71887289,0.00052054,120]
[357270261,1743970944525,-500.0,0.00052054,120]
[357270262,1743970944549,-500.0,0.00052054,120]
[357270263,1743970944574,-378.1224733,0.00052054,120]
[357270264,1743970944599,-500.0,0.00052054,120]
[357270265,1743970944624,-500.0,0.00052054,120]
[357270266,1743970944648,-500.0,0.00052054,120]
[357270267,1743970944673,-500.0,0.00052054,120]
[357270268,1743970944698,-500.0,0.00052054,120]
[357270269,1743970944722,-500.0,0.00052054,120]
[357270270,1743970944747,-500.0,0.00052054,120]
[357270271,1743970944772,-508.71127547,0.00052054,120]
[357270272,1743970944798,-619.02517579,0.00052054,120]
[357270273,1743970944825,-500.0,0.00052054,120]
[357270274,1743970944849,-500.0,0.00052054,120]
[357270275,1743970944874,-500.0,0.00052054,120]
[357270276,1743970944900,-500.0,0.00052054,120]
[357270277,1743970944926,-500.0,0.00052054,120]
[357270278,1743970944951,-500.0,0.00052054,120]
[357270279,1743970944976,-500.0,0.00052054,120]
[357270280,1743970945002,-500.0,0.00052054,120]
[357270281,1743970945150,-500.0,0.00052054,120]
[357270282,1743970945175,-500.0,0.00052054,120]
[357270283,1743970945201,-500.0,0.00052054,120]
[357270284,1743970945226,-500.0,0.00052054,120]
[357270285,1743970945251,-500.0,0.00052054,120]
[357270286,1743970945276,-542.38123427,0.00052054,120]
[357270287,1743970945302,-527.89,0.00052054,120]
[357270288,1743970945328,-504.55704829,0.00052054,120]
[357270289,1743970945354,-500.0,0.00052054,120]
[357270290,1743970945380,-500.0,0.00052054,120]
[357270291,1743970945405,-552.45607966,0.00052054,120]
[357270292,1743970945431,-500.0,0.00052054,120]
[357270293,1743970945456,-500.0,0.00052054,120]
[357270294,1743970945482,-500.0,0.00052054,120]
[357270295,1743970945507,-500.0,0.00052054,120]
[357270296,1743970945532,-500.0,0.00052054,120]
[357270297,1743970945557,-500.0,0.00052054,120]
[357270298,1743970945583,-500.0,0.00052054,120]
[357270299,1743970945607,-500.0,0.00052054,120]
[357270300,1743970945631,-500.0,0.00052054,120]
[357270301,1743970945655,-500.0,0.00052054,120]
[357270302,1743970945680,-500.0,0.00052054,120]
[357270303,1743970945704,-500.0,0.00052054,120]
[357270304,1743970945729,-677.68,0.00052054,120]
[357270305,1743970945754,-500.0,0.00052054,120]
[357270306,1743970945779,-500.0,0.00052054,120]
[357270307,1743970945804,-1370.6,0.00052054,120]
[357270308,1743970945831,-500.0,0.00052054,120]
[357270309,1743970945856,-500.0,0.00052054,120]
[357270310,1743970945881,-500.0,0.00052054,120]
[357270311,1743970945906,-500.0,0.00052054,120]
[357270312,1743970945931,-500.0,0.00052054,120]
[357270313,1743970945957,-500.0,0.00052054,120]
[357270314,1743970945983,-500.0,0.00052054,120]
[357270315,1743970946009,-500.0,0.00052054,120]
[357270316,1743970946034,-500.0,0.00052054,120]
[357270317,1743970946061,-500.0,0.00052054,120]
[357270318,1743970946089,-500.0,0.00052054,120]
[357270319,1743970946134,-500.0,0.00052054,120]
[357270320,1743970946163,-530.7,0.00052054,120]
[357270321,1743970946189,-500.0,0.00052054,120]
[357270322,1743970946215,-445.97053073,0.00052054,120]
[357270323,1743970946240,-500.0,0.00052054,120]
[357270324,1743970946266,-631.15355543,0.00052054,120]
[357270325,1743970946292,-500.0,0.00052054,120]
[357270326,1743970946318,-500.0,0.00052054,120]
[357270327,1743970946344,-504.82587533,0.00052054,120]
[357270328,1743970946370,-500.0,0.00052054,120]
[357270329,1743970946396,-500.0,0.00052054,120]
[357270330,1743970946422,-500.0,0.00052054,120]
[357270331,1743970946449,-500.0,0.00052054,120]
[357270332,1743970946476,-543.90087,0.00052054,120]
[357270333,1743970946504,-500.0,0.00052054,120]
[357270334,1743970946531,-500.0,0.00052054,120]
[357270335,1743970946557,-759.48,0.00052054,120]
[357270336,1743970946586,-500.0,0.00052054,120]
[357270337,1743970946612,-554.49,0.00052054,120]
[357270338,1743970946637,-500.0,0.00052054,120]
[357270339,1743970946663,-500.0,0.00052054,120]
[357270340,1743970946690,-500.0,0.00052054,120]
[357270341,1743970946717,-500.0,0.00052054,120]
[357270342,1743970946743,-547.04899774,0.00052054,120]
[357270343,1743970946768,-500.0,0.00052054,120]
[357270344,1743970946793,-500.0,0.00052054,120]
[357270345,1743970946821,-500.0,0.00052054,120]
[357270346,1743970946846,-520.70894489,0.00052054,120]
[357270347,1743970946871,-500.0,0.00052054,120]
[357270348,1743970946897,-500.0,0.00052054,120]
[357270349,1743970946922,-1509.77,0.00052054,120]
[357270350,1743970946947,-500.0,0.00052054,120]
[357270351,1743970946972,-500.0,0.00052054,120]
[357270352,1743970946998,-500.0,0.00052054,120]
[357270353,1743970947022,-503.04164642,0.00052054,120]
[357270354,1743970947047,-500.0,0.00052054,120]
[357270355,1743970947077,-2369.28,0.00052054,120]
[357270356,1743970947104,-500.0,0.00052054,120]
[357270357,1743970947130,-500.0,0.00052054,120]
[357270358,1743970947156,-500.0,0.00052054,120]
[357270359,1743970947303,-500.0,0.00052054,120]
[357270360,1743970947332,-500.0,0.00052054,120]
[357270361,1743970947359,-500.0,0.00052054,120]
[357270362,1743970947385,-500.0,0.00052054,120]
[357270363,1743970947412,-500.0,0.00052054,120]
[357270364,1743970947438,-500.0,0.00052054,120]
[357270365,1743970947464,-582.32480274,0.00052054,120]
[357270366,1743970947490,-3010.341077,0.00052054,120]
[357270367,1743970947516,-500.0,0.00052054,120]
[357270368,1743970947541,-500.0,0.00052054,120]
[357270369,1743970947566,-500.0,0.00052054,120]
[357270370,1743970947591,-500.0,0.00052054,120]
[357270371,1743970947617,-500.0,0.00052054,120]
[357270372,1743970947643,-603.84,0.00052054,120]
[357270373,1743970947668,-500.0,0.00052054,120]
[357270374,1743970947693,-500.0,0.00052054,120]
[357270375,1743970947719,-500.0,0.00052054,120]
[357270376,1743970947744,-500.0,0.00052054,120]
[357270377,1743970947769,-506.53758059,0.00052054,120]
[357270378,1743970947796,-500.0,0.00052054,120]
[357270379,1743970947824,-500.0,0.00052054,120]
[357270380,1743970947850,-500.0,0.00052054,120]
[357270381,1743970947876,-500.0,0.00052054,120]
[357270382,1743970947901,-506.18246633,0.00052054,120]
[357270383,1743970947927,-500.0,0.00052054,120]
[357270384,1743970947952,-500.0,0.00052054,120]
[357270385,1743970947977,-500.0,0.00052054,120]
[357270386,1743970948003,-509.25709044,0.00052054,120]
[357270387,1743970948028,-500.0,0.00052054,120]
[357270388,1743970948054,-500.0,0.00052054,120]
[357270389,1743970948084,-500.0,0.00052054,120]
[357270390,1743970948109,-1000.0,0.00052054,120]
[357270391,1743970948134,-500.0,0.00052054,120]
[357270392,1743970948161,-525.34804501,0.00052054,120]
[357270393,1743970948188,-500.0,0.00052054,120]
[357270394,1743970948213,-506.85,0.00052054,120]
[357270395,1743970948238,-508.77420355,0.00052054,120]
[357270396,1743970948264,-509.87336125,0.00052054,120]
[357270397,1743970948290,-532.13125942,0.00052054,120]
[357270398,1743970948317,-500.0,0.00052054,120]
[357270399,1743970948344,-500.0,0.00052054,120]
[357270400,1743970948370,-500.0,0.00052054,120]
[357270401,1743970948397,-500.0,0.00052054,120]
[357270402,1743970948423,-500.0,0.00052054,120]
[357270403,1743970948451,-515.74993643,0.00052054,120]
[357270404,1743970948478,-500.0,0.00052054,120]
[357270405,1743970948505,-500.0,0.00052054,120]
[357270406,1743970948531,-500.0,0.00052054,120]
[357270407,1743970948557,-500.0,0.00052054,120]
[357270408,1743970948588,-506.670636,0.00052054,120]
[357270409,1743970948613,-500.0,0.00052054,120]
[357270410,1743970948639,-500.0,0.00052054,120]
[357270411,1743970948665,-506.48979251,0.00052054,120]
[357270412,1743970948690,-588.26,0.00052054,120]
[357270413,1743970948715,-500.0,0.00052054,120]
[357270414,1743970948740,-500.0,0.00052054,120]
[357270415,1743970948764,-190.4452376,0.00052054,120]
[357270416,1743970948789,-500.0,0.00052054,120]
[357270417,1743970948813,-500.0,0.00052054,120]
[357270418,1743970948839,-500.0,0.00052054,120]
[357270419,1743970948864,-500.0,0.00052054,120]
[357270420,1743970948888,-500.0,0.00052054,120]
[357270421,1743970948914,-500.0,0.00052054,120]
[357270422,1743970948939,-700.22,0.00052054,120]
[357270423,1743970948965,-500.0,0.00052054,120]
[357270424,1743970948990,-505.91975549,0.00052054,120]
[357270425,1743970949014,-507.56146932,0.00052054,120]
[357270426,1743970949039,-2371.3,0.00052054,120]
[357270427,1743970949067,-500.0,0.00052054,120]
[357270428,1743970949092,-500.0,0.00052054,120]
[357270429,1743970949119,-500.0,0.00052054,120]
[357270430,1743970949143,-500.0,0.00052054,120]
[357270431,1743970949168,-500.0,0.00052054,120]
[357270432,1743970949193,-500.0,0.00052054,120]
[357270433,1743970949222,-500.0,0.00052054,120]
[357270434,1743970949364,-500.0,0.00052054,120]
[357270435,1743970949391,-500.0,0.00052054,120]
[357270436,1743970949417,-546.06,0.00052054,120]
[357270437,1743970949443,-543.900871,0.00052054,120]
[357270438,1743970949468,-500.0,0.00052054,120]
[357270439,1743970949493,-500.0,0.00052054,120]
[357270440,1743970949518,-503.91870293,0.00052054,120]
[357270441,1743970949543,-500.0,0.00052054,120]
[357270442,1743970949568,-502.78093918,0.00052054,120]
[357270443,1743970949594,-500.0,0.00052054,120]
[357270444,1743970949619,-551.42474647,0.00052054,120]
[357270445,1743970949643,-505.89530599,0.00052054,120]
[357270446,1743970949669,-500.0,0.00052054,120]
[357270447,1743970949694,-500.0,0.00052054,120]
[357270448,1743970949719,-500.0,0.00052054,120]
[357270449,1743970949744,-658.27,0.00052054,120]
[357270450,1743970949769,-500.0,0.00052054,120]
[357270451,1743970949794,-500.0,0.00052054,120]
[357270452,1743970949819,-500.0,0.00052054,120]
[357270453,1743970949844,-500.0,0.00052054,120]
[357270454,1743970949870,-500.0,0.00052054,120]
[357270455,1743970949895,-500.0,0.00052054,120]
[357270456,1743970949921,-500.0,0.00052054,120]
[357270457,1743970949948,-548.01,0.00052054,120]
[357270458,1743970949972,-507.80165077,0.00052054,120]
[357270459,1743970949997,-506.83508331,0.00052054,120]
[357270460,1743970950022,-502.65891652,0.00052054,120]
[357270461,1743970950046,-512.27390393,0.00052054,120]
[357270462,1743970950074,-1101.5,0.00052054,120]
[357270463,1743970950100,-500.0,0.00052054,120]
[357270464,1743970950127,-500.0,0.00052054,120]
[357270465,1743970950156,-500.0,0.00052054,120]
[357270466,1743970950182,-501.40089722,0.00052054,120]
[357270467,1743970950208,-929.34,0.00052054,120]
[357270468,1743970950234,-500.0,0.00052054,120]
[357270469,1743970950259,-500.0,0.00052054,120]
[357270470,1743970950285,-502.03489303,0.00052054,120]
[357270471,1743970950328,-500.0,0.00052054,120]
[357270472,1743970950372,-516.26045363,0.00052054,120]
[357270473,1743970950411,-500.0,0.00052054,120]
[357270474,1743970950455,-500.0,0.00052054,120]
[357270475,1743970950497,-509.19786235,0.00052054,120]
[357270476,1743970950539,-500.0,0.00052054,120]
[357270477,1743970950578,-704.29,0.00052054,120]
[357270478,1743970950618,-500.0,0.00052054,120]
[357270479,1743970950653,-510.65123349,0.00052054,120]
[357270480,1743970950686,-500.0,0.00052054,120]
[357270481,1743970950721,-507.00818559,0.00052054,120]
[357270482,1743970950758,-554.08,0.00052054,120]
[357270483,1743970950795,-981.43,0.00052054,120]
[357270484,1743970950830,-500.0,0.00052054,120]
[357270485,1743970950865,-500.0,0.00052054,120]
[357270486,1743970950899,-1500.0,0.00052054,120]
[357270487,1743970950934,-500.0,0.00052054,120]
[357270488,1743970950972,-519.69513572,0.00052054,120]
[357270489,1743970951007,-500.0,0.00052054,120]
[357270490,1743970951043,-500.0,0.00052054,120]
[357270491,1743970951085,-505.48004119,0.00052054,120]
[357270492,1743970951123,-500.0,0.00052054,120]
[357270493,1743970951159,-500.0,0.00052054,120]
[357270494,1743970951195,-500.0,0.00052054,120]
[357270495,1743970951231,-500.0,0.00052054,120]
[357270496,1743970951268,-500.0,0.00052054,120]
[357270497,1743970951309,-634.57,0.00052054,120]
[357270498,1743970951345,-500.0,0.00052054,120]
[357270499,1743970951382,-500.0,0.00052054,120]
[357270500,1743970951418,-500.0,0.00052054,120]
[357270501,1743970951456,-500.0,0.00052054,120]
[357270502,1743970951491,-503.50061246,0.00052054,120]
[357270503,1743970951526,-21905.37,0.00052054,120]
[357270504,1743970951561,-500.0,0.00052054,120]
[357270505,1743970951596,-462.87985422,0.00052054,120]
[357270506,1743970951793,-500.0,0.00052054,120]
[357270507,1743970951820,-500.0,0.00052054,120]
[357270508,1743970951845,-500.0,0.00052054,120]
[357270509,1743970951870,-500.0,0.00052054,120]
[357270510,1743970951895,-500.0,0.00052054,120]
[357270511,1743970951919,-500.0,0.00052054,120]
[357270512,1743970951942,-500.0,0.00052054,120]
[357270513,1743970951967,-504.9664173,0.00052054,120]
[357270514,1743970951997,-500.0,0.00052054,120]
[357270515,1743970952026,-500.0,0.00052054,120]
[357270516,1743970952056,-500.0,0.00052054,120]
[357270517,1743970952092,-521.37945427,0.00052054,120]
[357270518,1743970952123,-500.0,0.00052054,120]
[357270519,1743970952160,-500.0,0.00052054,120]
[357270520,1743970952189,-503.82947568,0.00052054,120]
[357270521,1743970952217,-251.49763631,0.00052054,120]
[357270522,1743970952248,-500.0,0.00052054,120]
[357270523,1743970952276,-373.16427831,0.00052054,120]
[357270524,1743970952304,-500.0,0.00052054,120]
[357270525,1743970952333,-503.00958081,0.00052054,120]
[357270526,1743970952361,-500.0,0.00052054,120]
[357270527,1743970952389,-500.0,0.00052054,120]
[357270528,1743970952417,-500.0,0.00052054,120]
[357270529,1743970952446,-386.84228799,0.00052054,120]
[357270530,1743970952475,-500.0,0.00052054,120]
[357270531,1743970952504,-500.0,0.00052054,120]
[357270532,1743970952532,-465.77760734,0.00052054,120]
[357270533,1743970952560,-500.0,0.00052054,120]
[357270534,1743970952588,-500.0,0.00052054,120]
[357270535,1743970952615,-500.0,0.00052054,120]
[357270536,1743970952643,-500.0,0.00052054,120]
[357270537,1743970952671,-500.0,0.00052054,120]
[357270538,1743970952699,-504.71231313,0.00052054,120]
[357270539,1743970952728,-500.0,0.00052054,120]
[357270540,1743970952756,-500.0,0.00052054,120]
[357270541,1743970952783,-500.0,0.00052054,120]
[357270542,1743970952811,-500.0,0.00052054,120]
[357270543,1743970952839,-500.0,0.00052054,120]
[357270544,1743970952867,-500.0,0.00052054,120]
[357270545,1743970952894,-500.0,0.00052054,120]
[357270546,1743970952922,-576.56,0.00052054,120]
[357270547,1743970952951,-500.0,0.00052054,120]
[357270548,1743970952979,-515.36634556,0.00052054,120]
[357270549,1743970953007,-500.0,0.00052054,120]
[357270550,1743970953037,-500.0,0.00052054,120]
[357270551,1743970953067,-532.77,0.00052054,120]
[357270552,1743970953099,-500.0,0.00052054,120]
[357270553,1743970953128,-649.96,0.00052054,120]
[357270554,1743970953160,-486.39131,0.00052054,120]
[357270555,1743970953191,-500.0,0.00052054,120]
[357270556,1743970953224,-500.0,0.00052054,120]
[357270557,1743970953256,-500.0,0.00052054,120]
[357270558,1743970953289,-500.0,0.00052054,120]
[357270559,1743970953324,-500.0,0.00052054,120]
[357270560,1743970953355,-511.68125497,0.00052054,120]
[357270561,1743970953386,-500.0,0.00052054,120]
[357270562,1743970953418,-500.0,0.00052054,120]
[357270563,1743970953449,-500.0,0.00052054,120]
[357270564,1743970953481,-593.87,0.00052054,120]
[357270565,1743970953512,-500.0,0.00052054,120]
[357270566,1743970953544,-500.0,0.00052054,120]
[357270567,1743970953574,-500.0,0.00052054,120]
[357270568,1743970953605,-500.0,0.00052054,120]
[357270569,1743970953635,-500.0,0.00052054,120]
[357270570,1743970953664,-501.72577133,0.00052054,120]
[357270571,1743970953693,-500.0,0.00052054,120]
[357270572,1743970953722,-500.0,0.00052054,120]
[357270573,1743970953750,-500.0,0.00052054,120]
[357270574,1743970953780,-500.0,0.00052054,120]
[357270575,1743970953817,-500.0,0.00052054,120]
[357270576,1743970953847,-500.0,0.00052054,120]
[357270577,1743970953878,-500.0,0.00052054,120]
[357270578,1743970953907,-1569.18,0.00052054,120]
[357270579,1743970953937,-527.02666802,0.00052054,120]
[357270580,1743970953966,-500.0,0.00052054,120]
[357270581,1743970953995,-564.28899534,0.00052054,120]
[357270582,1743970954025,-500.0,0.00052054,120]
[357270583,1743970954056,-500.0,0.00052054,120]
[357270584,1743970954093,-165.381959,0.00052054,120]
[357270585,1743970954283,-500.0,0.00052054,120]
[357270586,1743970954316,-1168.54,0.00052054,120]
[357270587,1743970954348,-500.0,0.00052054,120]
[357270588,1743970954382,-500.0,0.00052054,120]
[357270589,1743970954413,-500.0,0.00052054,120]
[357270590,1743970954444,-506.98550041,0.00052054,120]
[357270591,1743970954474,-643.71,0.00052054,120]
[357270592,1743970954504,-500.0,0.00052054,120]
[357270593,1743970954534,-500.0,0.00052054,120]
[357270594,1743970954566,-500.0,0.00052054,120]
[357270595,1743970954596,-501.1652357,0.00052054,120]
[357270596,1743970954626,-500.0,0.00052054,120]
[357270597,1743970954655,-500.79914053,0.00052054,120]
[357270598,1743970954685,-500.0,0.00052054,120]
[357270599,1743970954717,-733.34,0.00052054,100]
[357270600,1743970954746,-514.27034345,0.00052054,120]
[357270601,1743970954775,-500.0,0.00052054,120]
[357270602,1743970954805,-500.0,0.00052054,120]
[357270603,1743970954839,-500.0,0.00052054,120]
[357270604,1743970954868,-500.0,0.00052054,120]
[357270605,1743970954898,-500.0,0.00052054,120]
[357270606,1743970954928,-500.0,0.00052054,120]
[357270607,1743970954958,-543.78,0.00052054,120]
[357270608,1743970954987,-500.0,0.00052054,120]
[357270609,1743970955016,-210.46327,0.00052054,120]
[357270610,1743970955045,-500.0,0.00052054,120]
[357270611,1743970955076,-523.03317014,0.00052054,120]
[357270612,1743970955107,-500.0,0.00052054,120]
[357270613,1743970955136,-500.0,0.00052054,120]
[357270614,1743970955165,-500.0,0.00052054,120]
[357270615,1743970955195,-500.0,0.00052054,120]
[357270616,1743970955223,-500.0,0.00052054,120]
[357270617,1743970955253,-160.25887545,0.00052054,120]
[357270618,1743970955282,-500.0,0.00052054,120]
[357270619,1743970955311,-500.0,0.00052054,120]
[357270620,1743970955340,-1277.34,0.00052054,120]
[357270621,1743970955369,-505.58881974,0.00052054,120]
[357270622,1743970955400,-500.0,0.00052054,120]
[357270623,1743970955428,-565.07284428,0.00052054,120]
[357270624,1743970955458,-506.69095291,0.00052054,120]
[357270625,1743970955488,-500.0,0.00052054,120]
[357270626,1743970955517,-500.0,0.00052054,120]
[357270627,1743970955546,-515.13725965,0.00052054,120]
[357270628,1743970955574,-500.0,0.00052054,120]
[357270629,1743970955601,-500.0,0.00052054,120]
[357270630,1743970955628,-500.0,0.00052054,120]
[357270631,1743970955656,-500.0,0.00052054,120]
[357270632,1743970955684,-500.0,0.00052054,120]
[357270633,1743970955712,-503.91368104,0.00052054,120]
[357270634,1743970955740,-500.0,0.00052054,120]
[357270635,1743970955776,-500.0,0.00052054,120]
[357270636,1743970955812,-500.0,0.00052054,120]
[357270637,1743970955845,-510.63167703,0.00052054,120]
[357270638,1743970955875,-500.0,0.00052054,120]
[357270639,1743970955904,-508.26084867,0.00052054,120]
[357270640,1743970955934,-510.42110662,0.00052054,120]
[357270641,1743970955963,-500.0,0.00052054,120]
[357270642,1743970955993,-500.0,0.00052054,120]
[357270643,1743970956021,-624.67648509,0.00052054,120]
[357270644,1743970956049,-500.0,0.00052054,120]
[357270645,1743970956080,-504.52408647,0.00052054,120]
[357270646,1743970956110,-587.24,0.00052054,120]
[357270647,1743970956139,-507.49811609,0.00052054,120]
[357270648,1743970956167,-525.18653559,0.00052054,120]
[357270649,1743970956195,-460.51648892,0.00052054,120]
[357270650,1743970956223,-500.0,0.00052054,120]
[357270651,1743970956250,-500.0,0.00052054,120]
[357270652,1743970956278,-500.0,0.00052054,120]
[357270653,1743970956306,-509.81067849,0.00052054,120]
[357270654,1743970956336,-590.73465639,0.00052054,120]
[357270655,1743970956366,-500.0,0.00052054,120]
[357270656,1743970956394,-500.0,0.00052054,120]
[357270657,1743970956423,-535.82594511,0.00052054,120]
[357270658,1743970956453,-732.01,0.00052054,120]
[357270659,1743970956485,-2061.33,0.00052054,120]
[357270660,1743970956514,-500.0,0.00052054,120]
[357270661,1743970956694,-775.81,0.00052054,120]
[357270662,1743970956727,-1072.20437,0.00052054,120]
[357270663,1743970956758,-500.0,0.00052054,120]
[357270664,1743970956789,-500.0,0.00052054,120]
[357270665,1743970956820,-500.0,0.00052054,120]
[357270666,1743970956849,-500.0,0.00052054,120]
[357270667,1743970956878,-500.0,0.00052054,120]
[357270668,1743970956907,-500.0,0.00052054,120]
[357270669,1743970956934,-502.98324772,0.00052054,120]
[357270670,1743970956962,-500.0,0.00052054,120]
[357270671,1743970956990,-505.88419696,0.00052054,120]
[357270672,1743970957017,-500.0,0.00052054,120]
[357270673,1743970957046,-500.0,0.00052054,120]
[357270674,1743970957085,-500.0,0.00052054,120]
[357270675,1743970957115,-500.0,0.00052054,120]
[357270676,1743970957147,-786.35,0.00052054,120]
[357270677,1743970957176,-500.0,0.00052054,120]
[357270678,1743970957204,-507.34523748,0.00052054,120]
[357270679,1743970957233,-500.0,0.00052054,120]
[357270680,1743970957262,-506.01133629,0.00052054,120]
[357270681,1743970957291,-500.0,0.00052054,120]
[357270682,1743970957321,-503.93766517,0.00052054,120]
[357270683,1743970957352,-507.93514419,0.00052054,120]
[357270684,1743970957382,-500.0,0.00052054,120]
[357270685,1743970957411,-500.0,0.00052054,120]
[357270686,1743970957439,-500.0,0.00052054,120]
[357270687,1743970957469,-500.0,0.00052054,120]
[357270688,1743970957497,-297.90896505,0.00052054,120]
[357270689,1743970957525,-503.6066617,0.00052054,120]
[357270690,1743970957555,-650.89,0.00052054,120]
[357270691,1743970957584,-500.0,0.00052054,120]
[357270692,1743970957612,-500.0,0.00052054,120]
[357270693,1743970957640,-500.0,0.00052054,120]
[357270694,1743970957668,-505.20939486,0.00052054,120]
[357270695,1743970957697,-513.55031199,0.00052054,120]
[357270696,1743970957725,-500.0,0.00052054,120]
[357270697,1743970957753,-500.0,0.00052054,120]
[357270698,1743970957782,-500.0,0.00052054,120]
[357270699,1743970957810,-500.0,0.00052054,120]
[357270700,1743970957839,-500.0,0.00052054,120]
[357270701,1743970957868,-500.0,0.00052054,120]
[357270702,1743970957896,-500.0,0.00052054,120]
[357270703,1743970957924,-500.0,0.00052054,120]
[357270704,1743970957952,-500.0,0.00052054,120]
[357270705,1743970957980,-500.0,0.00052054,120]
[357270706,1743970958007,-500.0,0.00052054,120]
[357270707,1743970958035,-500.0,0.00052054,120]
[357270708,1743970958065,-505.99520694,0.00052054,120]
[357270709,1743970958092,-188.44282755,0.00052054,120]
[357270710,1743970958120,-509.30455907,0.00052054,120]
[357270711,1743970958149,-503.22731153,0.00052054,120]
[357270712,1743970958177,-500.0,0.00052054,120]
[357270713,1743970958206,-503.28484741,0.00052054,120]
[357270714,1743970958234,-500.0,0.00052054,30]
[357270715,1743970958261,-500.0,0.00052054,120]
[357270716,1743970958289,-500.0,0.00052054,120]
[357270717,1743970958317,-500.0,0.00052054,120]
[357270718,1743970958344,-547.6456649,0.00052054,120]
[357270719,1743970958373,-500.0,0.00052054,120]
[357270720,1743970958401,-500.0,0.00052054,120]
[357270721,1743970958428,-500.0,0.00052054,120]
[357270722,1743970958457,-500.0,0.00052054,120]
[357270723,1743970958484,-522.66151345,0.00052054,120]
[357270724,1743970958510,-758.38,0.00052054,120]
[357270725,1743970958537,-500.0,0.00052054,120]
[357270726,1743970958572,-500.0,0.00052054,120]
[357270727,1743970958602,-500.0,0.00052054,120]